[Event "Titled Tuesday Blitz January 11 2022"]
[White "Moroni, Luca Jr"]
[Black "Maghsoodloo, Parham"]
[WhiteFideId "865834"]
[BlackFideId "12539929"]
[WhiteElo "2573"]
[BlackElo "2630"]
[Result "1-0"]
[Round "08"]
[TimeControl "180+1"]
[Date "2022.01.11"]
[WhiteClock "0:01:56"]
[BlackClock "0:02:02"]

1. d4 {[%clk 0:03:00]}  Nf6 {[%clk 0:02:54]} 2. c4 {[%clk 0:03:01]}  e6 {[%clk 0:02:48]} 3. Nc3 {[%clk 0:03:01]}  Bb4 {[%clk 0:02:36]} 4. Nf3 {[%clk 0:03:01]}  O-O {[%clk 0:02:32]} 5. Bg5 {[%clk 0:03:01]}  h6 {[%clk 0:02:31]} 6. Bh4 {[%clk 0:03:01]}  d6 {[%clk 0:02:31]} 7. e3 {[%clk 0:02:54]}  Nbd7 {[%clk 0:02:27]} 8. Be2 {[%clk 0:02:53]}  b6 {[%clk 0:02:25]} 9. Nd2 {[%clk 0:02:52]}  Bb7 {[%clk 0:02:17]} 10. O-O {[%clk 0:02:49]}  Bxc3 {[%clk 0:02:16]} 11. bxc3 {[%clk 0:02:50]}  c5 {[%clk 0:02:16]} 12. a4 {[%clk 0:02:47]}  Qc7 {[%clk 0:02:16]} 13. Bg3 {[%clk 0:02:44]}  Rfe8 {[%clk 0:02:16]} 14. h3 {[%clk 0:02:23]}  e5 {[%clk 0:02:11]} 15. d5 {[%clk 0:02:23]}  e4 {[%clk 0:02:05]} 16. Qc2 {[%clk 0:02:17]}  Bc8 {[%clk 0:02:02]} 17. a5 {[%clk 0:02:09]}  Rb8 {[%clk 0:02:00]} 18. axb6 {[%clk 0:02:08]}  axb6 {[%clk 0:02:01]} 19. Ra3 {[%clk 0:02:03]}  Nf8 {[%clk 0:02:00]} 20. Rfa1 {[%clk 0:02:02]}  Ng6 {[%clk 0:02:00]} 21. Ra7 {[%clk 0:02:00]}  Rb7 {[%clk 0:02:01]} 22. Ra8 {[%clk 0:01:59]}  Ra7 {[%clk 0:02:02]} 23. R8xa7 {[%clk 0:01:56]} 1-0


[Site "https://www.chess.com"]

[Event "Titled Tuesday Blitz January 11 2022"]
[White "Moskalenko, Alexander"]
[Black "Murzin, Volodar"]
[WhiteFideId "4155351"]
[BlackFideId "44155573"]
[WhiteElo "2515"]
[BlackElo "2585"]
[Result "1-0"]
[Round "08"]
[TimeControl "180+1"]
[Date "2022.01.11"]
[WhiteClock "0:00:47"]
[BlackClock "0:00:02"]

1. Nf3 {[%clk 0:03:00]}  Nf6 {[%clk 0:02:58]} 2. g3 {[%clk 0:03:01]}  g6 {[%clk 0:02:59]} 3. b3 {[%clk 0:03:02]}  Bg7 {[%clk 0:02:59]} 4. Bb2 {[%clk 0:03:03]}  O-O {[%clk 0:03:00]} 5. Bg2 {[%clk 0:03:02]}  d6 {[%clk 0:03:01]} 6. d4 {[%clk 0:03:02]}  Nbd7 {[%clk 0:03:01]} 7. O-O {[%clk 0:03:01]}  e5 {[%clk 0:03:02]} 8. dxe5 {[%clk 0:02:57]}  Ng4 {[%clk 0:03:02]} 9. c4 {[%clk 0:02:56]}  Re8 {[%clk 0:03:02]} 10. Nc3 {[%clk 0:02:52]}  dxe5 {[%clk 0:03:02]} 11. h3 {[%clk 0:02:51]}  Nh6 {[%clk 0:03:02]} 12. e4 {[%clk 0:02:50]}  f6 {[%clk 0:03:02]} 13. Qd2 {[%clk 0:02:48]}  Nf7 {[%clk 0:03:02]} 14. Rfd1 {[%clk 0:02:46]}  c6 {[%clk 0:03:02]} 15. b4 {[%clk 0:02:46]}  Qc7 {[%clk 0:02:58]} 16. c5 {[%clk 0:02:42]}  Nf8 {[%clk 0:02:58]} 17. Ne2 {[%clk 0:02:23]}  Be6 {[%clk 0:02:54]} 18. Qc2 {[%clk 0:02:21]}  Red8 {[%clk 0:02:36]} 19. a3 {[%clk 0:02:18]}  a5 {[%clk 0:02:33]} 20. Kh2 {[%clk 0:02:08]}  Bh6 {[%clk 0:02:23]} 21. Ne1 {[%clk 0:01:58]}  axb4 {[%clk 0:02:09]} 22. axb4 {[%clk 0:01:58]}  Rxa1 {[%clk 0:02:10]} 23. Bxa1 {[%clk 0:01:57]}  Rxd1 {[%clk 0:02:11]} 24. Qxd1 {[%clk 0:01:58]}  Qd7 {[%clk 0:02:11]} 25. Qxd7 {[%clk 0:01:31]}  Nxd7 {[%clk 0:02:12]} 26. Bc3 {[%clk 0:01:30]}  Bc4 {[%clk 0:02:08]} 27. Ng1 {[%clk 0:01:15]}  b6 {[%clk 0:02:01]} 28. cxb6 {[%clk 0:01:15]}  Nxb6 {[%clk 0:02:02]} 29. f4 {[%clk 0:01:15]}  Nd7 {[%clk 0:00:48]} 30. Bd2 {[%clk 0:01:15]}  Nd6 {[%clk 0:00:43]} 31. Be3 {[%clk 0:01:10]}  Nb5 {[%clk 0:00:26]} 32. Ngf3 {[%clk 0:01:08]}  Nc3 {[%clk 0:00:26]} 33. Nc2 {[%clk 0:01:00]}  exf4 {[%clk 0:00:09]} 34. Bxf4 {[%clk 0:00:59]}  Bxf4 {[%clk 0:00:09]} 35. gxf4 {[%clk 0:01:00]}  Bd3 {[%clk 0:00:06]} 36. Nfd4 {[%clk 0:00:56]}  c5 {[%clk 0:00:07]} 37. bxc5 {[%clk 0:00:52]}  Nxc5 {[%clk 0:00:08]} 38. e5 {[%clk 0:00:53]}  fxe5 {[%clk 0:00:07]} 39. fxe5 {[%clk 0:00:54]}  Bxc2 {[%clk 0:00:04]} 40. Nxc2 {[%clk 0:00:54]}  Kf7 {[%clk 0:00:05]} 41. Nd4 {[%clk 0:00:53]}  N3e4 {[%clk 0:00:05]} 42. h4 {[%clk 0:00:50]}  Ke7 {[%clk 0:00:02]} 43. Bf3 {[%clk 0:00:49]}  Nd2 {[%clk 0:00:02]} 44. Bd5 {[%clk 0:00:48]}  Nd3 {[%clk 0:00:02]} 45. Nc6+ {[%clk 0:00:47]} 1-0


[Site "https://www.chess.com"]

[Event "Titled Tuesday Blitz January 11 2022"]
[White "Narayanan.S.L"]
[Black "Santos Ruiz, Miguel"]
[WhiteFideId "5058422"]
[BlackFideId "22291482"]
[WhiteElo "2494"]
[BlackElo "2486"]
[Result "1-0"]
[Round "08"]
[TimeControl "180+1"]
[Date "2022.01.11"]
[WhiteClock "0:02:22"]
[BlackClock "0:01:37"]

1. e4 {[%clk 0:02:59]}  c5 {[%clk 0:02:59]} 2. Bc4 {[%clk 0:02:59]}  e6 {[%clk 0:02:59]} 3. d3 {[%clk 0:02:59]}  d5 {[%clk 0:02:59]} 4. Bb3 {[%clk 0:02:58]}  Nc6 {[%clk 0:02:59]} 5. Nc3 {[%clk 0:02:57]}  dxe4 {[%clk 0:02:47]} 6. Nxe4 {[%clk 0:02:57]}  Nf6 {[%clk 0:02:44]} 7. Nxf6+ {[%clk 0:02:56]}  gxf6 {[%clk 0:02:36]} 8. Ne2 {[%clk 0:02:55]}  b6 {[%clk 0:02:35]} 9. Be3 {[%clk 0:02:54]}  Bb7 {[%clk 0:02:35]} 10. Qd2 {[%clk 0:02:54]}  Rg8 {[%clk 0:02:34]} 11. O-O-O {[%clk 0:02:52]}  Qc7 {[%clk 0:02:27]} 12. Nf4 {[%clk 0:02:50]}  O-O-O {[%clk 0:02:26]} 13. Nxe6 {[%clk 0:02:49]}  fxe6 {[%clk 0:02:13]} 14. Bxe6+ {[%clk 0:02:50]}  Kb8 {[%clk 0:02:14]} 15. Bxg8 {[%clk 0:02:50]}  c4 {[%clk 0:02:14]} 16. Bxc4 {[%clk 0:02:50]}  Ne5 {[%clk 0:02:13]} 17. Bf4 {[%clk 0:02:47]}  Bd6 {[%clk 0:02:11]} 18. Bxe5 {[%clk 0:02:45]}  Bxe5 {[%clk 0:02:11]} 19. Kb1 {[%clk 0:02:45]}  Bxg2 {[%clk 0:02:10]} 20. Rhg1 {[%clk 0:02:45]}  Bb7 {[%clk 0:02:11]} 21. Bb3 {[%clk 0:02:41]}  a5 {[%clk 0:02:10]} 22. a4 {[%clk 0:02:41]}  Ka7 {[%clk 0:02:10]} 23. h4 {[%clk 0:02:40]}  Qc5 {[%clk 0:02:06]} 24. Rg4 {[%clk 0:02:36]}  Rd4 {[%clk 0:02:04]} 25. Rxd4 {[%clk 0:02:36]}  Qxd4 {[%clk 0:02:05]} 26. c3 {[%clk 0:02:36]}  Qxh4 {[%clk 0:02:05]} 27. d4 {[%clk 0:02:36]}  Bd6 {[%clk 0:02:04]} 28. Re1 {[%clk 0:02:32]}  h5 {[%clk 0:02:02]} 29. Bc2 {[%clk 0:02:30]}  Qg4 {[%clk 0:01:57]} 30. Qe2 {[%clk 0:02:26]}  Bf3 {[%clk 0:01:49]} 31. Qe6 {[%clk 0:02:24]}  Bc7 {[%clk 0:01:35]} 32. Qxg4 {[%clk 0:02:22]}  hxg4 {[%clk 0:01:34]} 33. Be4 {[%clk 0:02:22]}  Bxe4+ {[%clk 0:01:26]} 34. Rxe4 {[%clk 0:02:22]}  f5 {[%clk 0:01:27]} 35. Re7 {[%clk 0:02:22]}  Kb7 {[%clk 0:01:27]} 36. Rf7 {[%clk 0:02:22]}  f4 {[%clk 0:01:28]} 37. Kc2 {[%clk 0:02:21]}  g3 {[%clk 0:01:28]} 38. fxg3 {[%clk 0:02:21]}  fxg3 {[%clk 0:01:29]} 39. Kd3 {[%clk 0:02:21]}  Kc6 {[%clk 0:01:29]} 40. Rg7 {[%clk 0:02:21]}  Bd6 {[%clk 0:01:27]} 41. Rg6 {[%clk 0:02:21]}  Kd5 {[%clk 0:01:27]} 42. c4+ {[%clk 0:02:21]}  Kc6 {[%clk 0:01:27]} 43. Ke4 {[%clk 0:02:21]}  Kd7 {[%clk 0:01:27]} 44. Rxd6+ {[%clk 0:02:20]}  Kxd6 {[%clk 0:01:27]} 45. Kf3 {[%clk 0:02:21]}  Ke6 {[%clk 0:01:28]} 46. Kxg3 {[%clk 0:02:21]}  Kf5 {[%clk 0:01:29]} 47. d5 {[%clk 0:02:21]}  Ke5 {[%clk 0:01:29]} 48. b3 {[%clk 0:02:21]}  Kd6 {[%clk 0:01:30]} 49. Kf4 {[%clk 0:02:21]}  Kc5 {[%clk 0:01:31]} 50. Ke5 {[%clk 0:02:22]}  Kb4 {[%clk 0:01:31]} 51. d6 {[%clk 0:02:22]}  Kxb3 {[%clk 0:01:32]} 52. d7 {[%clk 0:02:22]}  Kxc4 {[%clk 0:01:33]} 53. d8=Q {[%clk 0:02:22]}  b5 {[%clk 0:01:34]} 54. Qxa5 {[%clk 0:02:22]}  bxa4 {[%clk 0:01:34]} 55. Qxa4+ {[%clk 0:02:22]}  Kc5 {[%clk 0:01:34]} 56. Qc2+ {[%clk 0:02:21]}  Kb6 {[%clk 0:01:35]} 57. Kd5 {[%clk 0:02:21]}  Ka5 {[%clk 0:01:35]} 58. Qb2 {[%clk 0:02:21]}  Ka6 {[%clk 0:01:36]} 59. Kc5 {[%clk 0:02:21]}  Ka5 {[%clk 0:01:37]} 60. Qa2# {[%clk 0:02:22]} 1-0


[Site "https://www.chess.com"]

[Event "Titled Tuesday Blitz January 11 2022"]
[White "Panesar Vedant"]
[Black "Vlassov, Nikolai"]
[WhiteFideId "35033018"]
[BlackFideId "4103360"]
[WhiteElo "1971"]
[BlackElo "2407"]
[Result "1-0"]
[Round "08"]
[TimeControl "180+1"]
[Date "2022.01.11"]
[WhiteClock "0:01:13"]
[BlackClock "0:01:39"]

1. d4 {[%clk 0:03:00]}  Nf6 {[%clk 0:02:59]} 2. Nf3 {[%clk 0:03:01]}  e6 {[%clk 0:02:59]} 3. c4 {[%clk 0:03:01]}  Nc6 {[%clk 0:02:59]} 4. a3 {[%clk 0:03:00]}  g6 {[%clk 0:02:59]} 5. Nc3 {[%clk 0:03:00]}  Bg7 {[%clk 0:02:59]} 6. e4 {[%clk 0:03:01]}  d5 {[%clk 0:03:00]} 7. cxd5 {[%clk 0:02:59]}  exd5 {[%clk 0:03:00]} 8. e5 {[%clk 0:02:58]}  Ne4 {[%clk 0:03:01]} 9. Bd3 {[%clk 0:02:51]}  Bf5 {[%clk 0:03:01]} 10. O-O {[%clk 0:02:50]}  O-O {[%clk 0:02:57]} 11. Re1 {[%clk 0:02:48]}  Nxc3 {[%clk 0:02:57]} 12. bxc3 {[%clk 0:02:49]}  Bxd3 {[%clk 0:02:57]} 13. Qxd3 {[%clk 0:02:50]}  Na5 {[%clk 0:02:57]} 14. Bg5 {[%clk 0:02:42]}  Qd7 {[%clk 0:02:56]} 15. Qe3 {[%clk 0:02:36]}  Nc4 {[%clk 0:02:54]} 16. Qf4 {[%clk 0:02:36]}  Rae8 {[%clk 0:02:50]} 17. Qh4 {[%clk 0:02:35]}  Re6 {[%clk 0:02:45]} 18. Re2 {[%clk 0:02:09]}  f6 {[%clk 0:02:40]} 19. Bh6 {[%clk 0:01:46]}  fxe5 {[%clk 0:02:35]} 20. dxe5 {[%clk 0:01:36]}  Bxh6 {[%clk 0:01:56]} 21. Qxh6 {[%clk 0:01:37]}  Qg7 {[%clk 0:01:56]} 22. Qh3 {[%clk 0:01:33]}  Rfe8 {[%clk 0:01:48]} 23. Rae1 {[%clk 0:01:32]}  Nxe5 {[%clk 0:01:42]} 24. Nxe5 {[%clk 0:01:12]}  Rxe5 {[%clk 0:01:42]} 25. Rxe5 {[%clk 0:01:13]}  Rxe5 {[%clk 0:01:39]} 26. Qc8+ {[%clk 0:01:13]} 1-0


[Site "https://www.chess.com"]

[Event "Titled Tuesday Blitz January 11 2022"]
[White "Senthil Maran K"]
[Black "Bryakin, Mikhail"]
[WhiteFideId "25035681"]
[BlackFideId "4165314"]
[WhiteElo "2194"]
[BlackElo "2421"]
[Result "1-0"]
[Round "08"]
[TimeControl "180+1"]
[Date "2022.01.11"]
[WhiteClock "0:01:34"]
[BlackClock "0:02:15"]

1. d4 {[%clk 0:03:00]}  Nf6 {[%clk 0:02:51]} 2. Nf3 {[%clk 0:03:00]}  g6 {[%clk 0:02:51]} 3. g3 {[%clk 0:03:00]}  Bg7 {[%clk 0:02:51]} 4. Bg2 {[%clk 0:03:00]}  O-O {[%clk 0:02:52]} 5. O-O {[%clk 0:03:00]}  d6 {[%clk 0:02:52]} 6. c4 {[%clk 0:03:01]}  Nc6 {[%clk 0:02:52]} 7. Nc3 {[%clk 0:03:01]}  Rb8 {[%clk 0:02:53]} 8. b3 {[%clk 0:02:57]}  a6 {[%clk 0:02:52]} 9. d5 {[%clk 0:02:58]}  Na5 {[%clk 0:02:50]} 10. Bg5 {[%clk 0:02:58]}  b5 {[%clk 0:02:48]} 11. cxb5 {[%clk 0:02:44]}  axb5 {[%clk 0:02:49]} 12. b4 {[%clk 0:02:38]}  Nc4 {[%clk 0:02:49]} 13. Nd4 {[%clk 0:02:36]}  Bd7 {[%clk 0:02:49]} 14. a4 {[%clk 0:02:29]}  h6 {[%clk 0:02:48]} 15. Bxf6 {[%clk 0:02:19]}  Bxf6 {[%clk 0:02:49]} 16. axb5 {[%clk 0:02:20]}  Qc8 {[%clk 0:02:38]} 17. Qd3 {[%clk 0:01:59]}  Nb6 {[%clk 0:02:25]} 18. Nc6 {[%clk 0:01:46]}  Ra8 {[%clk 0:02:25]} 19. Ra5 {[%clk 0:01:40]}  Bh3 {[%clk 0:02:17]} 20. Ne4 {[%clk 0:01:35]}  Bg7 {[%clk 0:02:15]} 21. Nxe7+ {[%clk 0:01:34]} 1-0


[Site "https://www.chess.com"]

[Event "Titled Tuesday Blitz January 11 2022"]
[White "Taboas Rodriguez, Daniel"]
[Black "Howell, David W L"]
[WhiteFideId "2208466"]
[BlackFideId "410608"]
[WhiteElo "2429"]
[BlackElo "2559"]
[Result "0-1"]
[Round "08"]
[TimeControl "180+1"]
[Date "2022.01.11"]
[WhiteClock "0:00:31"]
[BlackClock "0:00:37"]

1. d4 {[%clk 0:02:59]}  d5 {[%clk 0:02:57]} 2. Nf3 {[%clk 0:03:00]}  e6 {[%clk 0:02:58]} 3. c4 {[%clk 0:03:01]}  Nf6 {[%clk 0:02:58]} 4. Bg5 {[%clk 0:03:01]}  Be7 {[%clk 0:02:57]} 5. e3 {[%clk 0:03:02]}  Nbd7 {[%clk 0:02:56]} 6. Nc3 {[%clk 0:03:02]}  h6 {[%clk 0:02:57]} 7. Bh4 {[%clk 0:03:02]}  O-O {[%clk 0:02:56]} 8. Rc1 {[%clk 0:03:02]}  a6 {[%clk 0:02:49]} 9. c5 {[%clk 0:02:56]}  c6 {[%clk 0:02:37]} 10. b4 {[%clk 0:02:55]}  b6 {[%clk 0:02:33]} 11. Bd3 {[%clk 0:02:53]}  a5 {[%clk 0:02:31]} 12. b5 {[%clk 0:02:42]}  Bb7 {[%clk 0:02:28]} 13. cxb6 {[%clk 0:02:38]}  c5 {[%clk 0:02:22]} 14. O-O {[%clk 0:02:29]}  c4 {[%clk 0:02:00]} 15. Bb1 {[%clk 0:02:29]}  Qxb6 {[%clk 0:01:55]} 16. a4 {[%clk 0:02:20]}  Ba3 {[%clk 0:01:46]} 17. Rc2 {[%clk 0:02:20]}  Rfe8 {[%clk 0:01:41]} 18. Re2 {[%clk 0:02:11]}  Bd6 {[%clk 0:01:26]} 19. Qc2 {[%clk 0:02:07]}  g6 {[%clk 0:01:23]} 20. Ne5 {[%clk 0:01:52]}  Nxe5 {[%clk 0:01:18]} 21. Bxf6 {[%clk 0:01:40]}  Ng4 {[%clk 0:01:18]} 22. Bh4 {[%clk 0:01:36]}  Bxh2+ {[%clk 0:01:04]} 23. Kh1 {[%clk 0:01:36]}  Bd6 {[%clk 0:00:56]} 24. f3 {[%clk 0:01:30]}  Nxe3 {[%clk 0:00:56]} 25. Rxe3 {[%clk 0:01:28]}  Qxd4 {[%clk 0:00:56]} 26. Bf2 {[%clk 0:01:22]}  Qf6 {[%clk 0:00:55]} 27. Ree1 {[%clk 0:01:05]}  Qf4 {[%clk 0:00:51]} 28. g3 {[%clk 0:00:56]}  Qxf3+ {[%clk 0:00:51]} 29. Kg1 {[%clk 0:00:56]}  Bxg3 {[%clk 0:00:47]} 30. Re3 {[%clk 0:00:38]}  Bxf2+ {[%clk 0:00:44]} 31. Rxf2 {[%clk 0:00:34]}  Qxe3 {[%clk 0:00:42]} 32. Kg2 {[%clk 0:00:31]}  Qxc3 {[%clk 0:00:37]} 0-1


[Site "https://www.chess.com"]

[Event "Titled Tuesday Blitz January 11 2022"]
[White "Triapishko, Alexandr"]
[Black "Sipetin, Vladislav"]
[WhiteFideId "14122286"]
[BlackFideId "24176893"]
[WhiteElo "2479"]
[BlackElo "2228"]
[Result "1/2-1/2"]
[Round "08"]
[TimeControl "180+1"]
[Date "2022.01.11"]
[WhiteClock "0:00:03"]
[BlackClock "0:00:03"]

1. Nf3 {[%clk 0:02:16]}  Nf6 {[%clk 0:02:53]} 2. g3 {[%clk 0:02:16]}  d5 {[%clk 0:02:54]} 3. Bg2 {[%clk 0:02:08]}  c6 {[%clk 0:02:53]} 4. c4 {[%clk 0:02:06]}  Bg4 {[%clk 0:02:40]} 5. Ne5 {[%clk 0:01:53]}  Bf5 {[%clk 0:02:38]} 6. cxd5 {[%clk 0:01:41]}  cxd5 {[%clk 0:02:39]} 7. Nc3 {[%clk 0:01:41]}  e6 {[%clk 0:02:28]} 8. g4 {[%clk 0:01:34]}  Be4 {[%clk 0:02:13]} 9. Nxe4 {[%clk 0:00:35]}  Nxe4 {[%clk 0:02:13]} 10. Qa4+ {[%clk 0:00:35]}  Nd7 {[%clk 0:02:12]} 11. Bxe4 {[%clk 0:00:35]}  dxe4 {[%clk 0:02:12]} 12. Nxd7 {[%clk 0:00:35]}  Qxd7 {[%clk 0:02:12]} 13. Qxe4 {[%clk 0:00:36]}  Be7 {[%clk 0:01:55]} 14. O-O {[%clk 0:00:35]}  O-O {[%clk 0:01:54]} 15. d3 {[%clk 0:00:36]}  f5 {[%clk 0:01:46]} 16. Qg2 {[%clk 0:00:33]}  Rac8 {[%clk 0:01:37]} 17. Bd2 {[%clk 0:00:21]}  Bf6 {[%clk 0:01:33]} 18. Bc3 {[%clk 0:00:17]}  Bxc3 {[%clk 0:01:32]} 19. bxc3 {[%clk 0:00:18]}  Rxc3 {[%clk 0:01:33]} 20. gxf5 {[%clk 0:00:18]}  exf5 {[%clk 0:01:21]} 21. Rac1 {[%clk 0:00:16]}  Rfc8 {[%clk 0:01:21]} 22. Rxc3 {[%clk 0:00:16]}  Rxc3 {[%clk 0:01:22]} 23. Qf3 {[%clk 0:00:15]}  b6 {[%clk 0:01:16]} 24. Rb1 {[%clk 0:00:10]}  h5 {[%clk 0:01:02]} 25. Kg2 {[%clk 0:00:07]}  Qf7 {[%clk 0:00:53]} 26. h4 {[%clk 0:00:05]}  Qxa2 {[%clk 0:00:18]} 27. Rb5 {[%clk 0:00:05]}  Rc5 {[%clk 0:00:14]} 28. Rxc5 {[%clk 0:00:05]}  bxc5 {[%clk 0:00:15]} 29. Qxf5 {[%clk 0:00:05]}  Qxe2 {[%clk 0:00:12]} 30. Qd5+ {[%clk 0:00:05]}  Kh7 {[%clk 0:00:10]} 31. Qf5+ {[%clk 0:00:06]}  Kg8 {[%clk 0:00:10]} 32. Qxc5 {[%clk 0:00:02]}  Qg4+ {[%clk 0:00:10]} 33. Kf1 {[%clk 0:00:02]}  Qd1+ {[%clk 0:00:09]} 34. Kg2 {[%clk 0:00:03]}  Qg4+ {[%clk 0:00:07]} 35. Kf1 {[%clk 0:00:02]}  Qd1+ {[%clk 0:00:07]} 36. Kg2 {[%clk 0:00:03]}  Qxd3 {[%clk 0:00:07]} 37. Qxh5 {[%clk 0:00:02]}  Qe4+ {[%clk 0:00:05]} 38. Kg3 {[%clk 0:00:03]}  Qc6 {[%clk 0:00:03]} 39. Qa5 {[%clk 0:00:02]}  Qb6 {[%clk 0:00:03]} 40. Qd5+ {[%clk 0:00:02]}  Kh7 {[%clk 0:00:03]} 41. h5 {[%clk 0:00:03]}  Qc7+ {[%clk 0:00:03]} 42. Kg2 {[%clk 0:00:02]}  Qb6 {[%clk 0:00:02]} 43. Qf5+ {[%clk 0:00:02]}  Kh6 {[%clk 0:00:03]} 44. Qf4+ {[%clk 0:00:02]}  Kxh5 {[%clk 0:00:02]} 45. Qf5+ {[%clk 0:00:03]}  Kh6 {[%clk 0:00:02]} 46. Qh3+ {[%clk 0:00:03]}  Kg6 {[%clk 0:00:03]} 47. Qd3+ {[%clk 0:00:03]}  Kf6 {[%clk 0:00:03]} 48. Qf3+ {[%clk 0:00:04]}  Ke7 {[%clk 0:00:03]} 49. Qe4+ {[%clk 0:00:04]}  Kf8 {[%clk 0:00:03]} 50. Qf5+ {[%clk 0:00:04]}  Kg8 {[%clk 0:00:03]} 51. Qc8+ {[%clk 0:00:04]}  Kf7 {[%clk 0:00:04]} 52. Qd7+ {[%clk 0:00:04]}  Kf6 {[%clk 0:00:04]} 53. f3 {[%clk 0:00:02]}  a5 {[%clk 0:00:05]} 54. Qd5 {[%clk 0:00:01]}  Qb2+ {[%clk 0:00:03]} 55. Kh3 {[%clk 0:00:01]}  Qe5 {[%clk 0:00:03]} 56. Qc6+ {[%clk 0:00:01]}  Ke7 {[%clk 0:00:03]} 57. Qb7+ {[%clk 0:00:01]}  Kd6 {[%clk 0:00:03]} 58. Kg2 {[%clk 0:00:02]}  g5 {[%clk 0:00:02]} 59. Qb8+ {[%clk 0:00:01]}  Kd5 {[%clk 0:00:02]} 60. Qa8+ {[%clk 0:00:01]}  Kd6 {[%clk 0:00:02]} 61. Qd8+ {[%clk 0:00:01]}  Ke6 {[%clk 0:00:02]} 62. Qe8+ {[%clk 0:00:02]}  Kd5 {[%clk 0:00:02]} 63. Qb5+ {[%clk 0:00:02]}  Ke6 {[%clk 0:00:02]} 64. Qe8+ {[%clk 0:00:02]}  Kf6 {[%clk 0:00:03]} 65. Qh8+ {[%clk 0:00:02]}  Kf5 {[%clk 0:00:03]} 66. Qh7+ {[%clk 0:00:02]}  Kf4 {[%clk 0:00:02]} 67. Qf7+ {[%clk 0:00:03]}  Ke3 {[%clk 0:00:02]} 68. Qb3+ {[%clk 0:00:03]}  Kd2 {[%clk 0:00:03]} 69. Qa2+ {[%clk 0:00:02]}  Kd3 {[%clk 0:00:03]} 70. Qb3+ {[%clk 0:00:02]}  Kd4 {[%clk 0:00:03]} 71. Qb2+ {[%clk 0:00:02]}  Kd5 {[%clk 0:00:03]} 72. Qb5+ {[%clk 0:00:03]}  Ke6 {[%clk 0:00:03]} 73. Qe8+ {[%clk 0:00:03]} 1/2-1/2


[Site "https://www.chess.com"]

[Event "Titled Tuesday Blitz January 11 2022"]
[White "Urquhart, Ed"]
[Black "Mokshanov, Alexey"]
[WhiteFideId "2603748"]
[BlackFideId "24121657"]
[WhiteElo "2184"]
[BlackElo "2141"]
[Result "0-1"]
[Round "08"]
[TimeControl "180+1"]
[Date "2022.01.11"]
[WhiteClock "0:00:20"]
[BlackClock "0:00:19"]

1. e4 {[%clk 0:03:00]}  e6 {[%clk 0:02:04]} 2. d4 {[%clk 0:03:00]}  d5 {[%clk 0:02:04]} 3. Nd2 {[%clk 0:03:00]}  Nf6 {[%clk 0:02:04]} 4. e5 {[%clk 0:03:01]}  Nfd7 {[%clk 0:02:05]} 5. c3 {[%clk 0:03:01]}  c5 {[%clk 0:02:05]} 6. f4 {[%clk 0:03:01]}  Nc6 {[%clk 0:02:06]} 7. Ndf3 {[%clk 0:03:02]}  Qb6 {[%clk 0:02:05]} 8. h4 {[%clk 0:03:01]}  f6 {[%clk 0:02:03]} 9. a3 {[%clk 0:02:47]}  Be7 {[%clk 0:02:02]} 10. Nh3 {[%clk 0:02:46]}  O-O {[%clk 0:02:01]} 11. Bd3 {[%clk 0:02:44]}  Kh8 {[%clk 0:01:59]} 12. h5 {[%clk 0:02:42]}  cxd4 {[%clk 0:01:59]} 13. cxd4 {[%clk 0:02:40]}  Nxd4 {[%clk 0:01:57]} 14. Be3 {[%clk 0:02:13]}  Nxf3+ {[%clk 0:01:49]} 15. Qxf3 {[%clk 0:02:14]}  Qb3 {[%clk 0:01:36]} 16. Qe2 {[%clk 0:01:50]}  fxe5 {[%clk 0:01:31]} 17. Bc2 {[%clk 0:01:41]}  Qxb2 {[%clk 0:01:24]} 18. O-O {[%clk 0:01:32]}  e4 {[%clk 0:01:15]} 19. h6 {[%clk 0:01:26]}  gxh6 {[%clk 0:01:06]} 20. Rab1 {[%clk 0:01:07]}  Qg7 {[%clk 0:01:04]} 21. Qh5 {[%clk 0:00:47]}  Nf6 {[%clk 0:00:57]} 22. Qe2 {[%clk 0:00:42]}  Ng4 {[%clk 0:00:54]} 23. Bc1 {[%clk 0:00:36]}  b6 {[%clk 0:00:47]} 24. f5 {[%clk 0:00:32]}  e5 {[%clk 0:00:29]} 25. Qb5 {[%clk 0:00:24]}  Bc5+ {[%clk 0:00:23]} 26. Kh1 {[%clk 0:00:22]}  Bxf5 {[%clk 0:00:23]} 27. Qc6 {[%clk 0:00:21]}  Bd7 {[%clk 0:00:20]} 28. Qxd5 {[%clk 0:00:20]}  Rxf1+ {[%clk 0:00:19]} 0-1


[Site "https://www.chess.com"]

[Event "Titled Tuesday Blitz January 11 2022"]
[White "Yeletsky, Ivan"]
[Black "Williams, Simon K"]
[WhiteFideId "24180327"]
[BlackFideId "404454"]
[WhiteElo "2348"]
[BlackElo "2468"]
[Result "1-0"]
[Round "08"]
[TimeControl "180+1"]
[Date "2022.01.11"]
[WhiteClock "0:00:16"]
[BlackClock "0:00:13"]

1. c4 {[%clk 0:03:00]}  f5 {[%clk 0:02:59]} 2. Nc3 {[%clk 0:02:59]}  Nf6 {[%clk 0:02:55]} 3. d4 {[%clk 0:02:59]}  e6 {[%clk 0:02:54]} 4. a3 {[%clk 0:02:59]}  g6 {[%clk 0:02:53]} 5. h4 {[%clk 0:02:57]}  Bg7 {[%clk 0:02:35]} 6. Bf4 {[%clk 0:02:57]}  h6 {[%clk 0:02:33]} 7. e3 {[%clk 0:02:57]}  d6 {[%clk 0:02:32]} 8. f3 {[%clk 0:02:44]}  Qe7 {[%clk 0:02:29]} 9. Nge2 {[%clk 0:02:41]}  e5 {[%clk 0:02:28]} 10. Bg3 {[%clk 0:02:40]}  O-O {[%clk 0:02:18]} 11. Bf2 {[%clk 0:02:19]}  Nc6 {[%clk 0:02:15]} 12. d5 {[%clk 0:02:18]}  Nd8 {[%clk 0:02:13]} 13. Qc2 {[%clk 0:02:16]}  c6 {[%clk 0:02:10]} 14. O-O-O {[%clk 0:02:01]}  cxd5 {[%clk 0:02:09]} 15. cxd5 {[%clk 0:02:01]}  Bd7 {[%clk 0:02:08]} 16. Kb1 {[%clk 0:02:00]}  Rc8 {[%clk 0:02:07]} 17. h5 {[%clk 0:01:53]}  g5 {[%clk 0:02:05]} 18. Ng3 {[%clk 0:01:52]}  e4 {[%clk 0:01:40]} 19. Qb3 {[%clk 0:01:38]}  Nf7 {[%clk 0:01:28]} 20. Bb5 {[%clk 0:01:34]}  exf3 {[%clk 0:01:16]} 21. gxf3 {[%clk 0:01:30]}  Ne5 {[%clk 0:01:16]} 22. Bxd7 {[%clk 0:01:29]}  Nfxd7 {[%clk 0:01:15]} 23. f4 {[%clk 0:01:12]}  Nc5 {[%clk 0:01:15]} 24. Qc2 {[%clk 0:01:07]}  Nc4 {[%clk 0:01:14]} 25. Nxf5 {[%clk 0:00:59]}  Qf6 {[%clk 0:00:43]} 26. Nxg7 {[%clk 0:00:58]}  Qxg7 {[%clk 0:00:44]} 27. Rhg1 {[%clk 0:00:47]}  Nxa3+ {[%clk 0:00:40]} 28. bxa3 {[%clk 0:00:47]}  Na4 {[%clk 0:00:39]} 29. Qxa4 {[%clk 0:00:41]}  Rxc3 {[%clk 0:00:38]} 30. Qd4 {[%clk 0:00:36]}  Qc7 {[%clk 0:00:34]} 31. Rc1 {[%clk 0:00:28]}  Rxc1+ {[%clk 0:00:17]} 32. Rxc1 {[%clk 0:00:28]}  Qa5 {[%clk 0:00:17]} 33. Kb2 {[%clk 0:00:21]}  Qb5+ {[%clk 0:00:17]} 34. Ka1 {[%clk 0:00:19]}  Qe2 {[%clk 0:00:17]} 35. Be1 {[%clk 0:00:16]}  gxf4 {[%clk 0:00:15]} 36. Bc3 {[%clk 0:00:16]}  Kf7 {[%clk 0:00:13]} 37. Qf6+ {[%clk 0:00:16]}  Ke8 {[%clk 0:00:13]} 38. Qe6+ {[%clk 0:00:16]}  Kd8 {[%clk 0:00:13]} 39. Ba5+ {[%clk 0:00:16]} 1-0


[Site "https://www.chess.com"]